{"text_format":"1","workbook":"xlsx","n_sheets":7,"sheets":["Guía","Datos Generales","Gráficas de Matemáticas","Nvl_Mat","Gráficas de LyC","Nvl_LyC","Dat"],"not_rendered":{"charts":6,"images":12,"macros":1,"external_links":0,"defined_names":1,"comments":0,"pivot_tables":0},"unopened":[],"bounds":{"document_bytes":16777216,"sheet_cells":100000,"rows_first":2000,"rows_last":500,"rows_between":2000,"halvings":0,"cell_chars":16384,"cell_head_chars":4096},"cells_cut":0,"cells_raw":0,"read":"whole","date_system":"1900"}

{"sheet":"Guía","index":0,"n_rows":0,"n_cols":0,"rows_kept":0,"cut":false,"hidden":false,"merged":[]}

{"sheet":"Datos Generales","index":1,"n_rows":14,"n_cols":18,"rows_kept":14,"cut":false,"hidden":false,"merged":[[13,16,13,17],[13,3,13,4],[13,5,13,6],[13,8,13,9],[13,10,13,11],[13,13,13,15],[9,3,9,8],[9,9,9,29],[11,3,11,5],[11,6,11,15],[0,0,0,31],[5,3,5,5],[5,6,5,12],[7,3,7,4],[7,6,7,12],[7,14,7,15],[7,16,7,22],[11,17,11,19],[11,20,11,29]]}
["DATOS GENERALES"]
[]
[null,null,"*Capture la siguiente información"]
[]
[]
[null,null,null,"ENTIDAD:"]
[]
[null,null,null,"CCT:",null,null,null,null,null,null,null,null,null,null,"TURNO:"]
[]
[null,null,null,"NOMBRE DE LA ESCUELA:"]
[]
[null,null,null,"MUNICIPIO:",null,null,null,null,null,null,null,null,null,null,null,null,null,"LOCALIDAD:"]
[]
[null,null,null,"GRADO:",null,"6º",null,null,"GRUPO:",null,null,null,null,"ALUMNOS:"]

{"sheet":"Gráficas de Matemáticas","index":2,"n_rows":2,"n_cols":1,"rows_kept":2,"cut":false,"hidden":true,"merged":[[0,0,0,11],[1,0,1,11]]}
[{"$f":"\"Escuela: \"&'Datos Generales'!J10","v":"Escuela: "}]
[{"$f":"\"Grupo: \"&'Datos Generales'!K14","v":"Grupo: "}]

{"sheet":"Nvl_Mat","index":3,"n_rows":11,"n_cols":10,"rows_kept":11,"cut":false,"hidden":true,"merged":[[8,0,9,0],[8,1,9,1],[8,2,8,5],[8,6,8,9],[0,0,0,9],[1,0,1,9],[2,0,2,9],[3,0,3,9],[6,0,6,9],[5,0,5,9]]}
["Planea Educación Básica"]
["Matemáticas"]
["Cuadro de Alumnos en cada Nivel de Logro"]
["6to de Primaria"]
[]
[{"$f":"\"Escuela: \"&'Datos Generales'!J10","v":"Escuela: "}]
[{"$f":"\"Grupo: \"&'Datos Generales'!K14","v":"Grupo: "}]
[]
["GRUPO","ALUMNOS A EVALUAR","CANTIDAD DE ALUMNOS EN CADA NIVEL DE LOGRO",null,null,null,"% DE ALUMNOS EN CADA NIVEL DE LOGRO"]
[null,null,"I","II","III","IV","I","II","III","IV"]
[{"$f":"'Datos Generales'!K14","v":0},{"$f":"SUM(C11:F11)","v":0},null,null,null,null,{"$f":"C11/$B$11*100","v":{"$error":"#DIV/0!"}},{"$f":"D11/$B$11*100","v":{"$error":"#DIV/0!"}},{"$f":"E11/$B$11*100","v":{"$error":"#DIV/0!"}},{"$f":"F11/$B$11*100","v":{"$error":"#DIV/0!"}}]

{"sheet":"Gráficas de LyC","index":4,"n_rows":2,"n_cols":1,"rows_kept":2,"cut":false,"hidden":true,"merged":[[0,0,0,11],[1,0,1,11]]}
[{"$f":"\"Escuela: \"&'Datos Generales'!J10","v":"Escuela: "}]
[{"$f":"\"Grupo: \"&'Datos Generales'!K14","v":"Grupo: "}]

{"sheet":"Nvl_LyC","index":5,"n_rows":11,"n_cols":10,"rows_kept":11,"cut":false,"hidden":true,"merged":[[8,0,9,0],[8,1,9,1],[8,2,8,5],[8,6,8,9],[0,0,0,9],[1,0,1,9],[2,0,2,9],[3,0,3,9],[5,0,5,9],[6,0,6,9]]}
["Planea Educación Básica"]
["Lenguaje y Comunicación"]
["Cuadro de Alumnos en cada Nivel de Logro"]
["6to de Primaria"]
[]
[{"$f":"\"Escuela: \"&'Datos Generales'!J10","v":"Escuela: "}]
[{"$f":"\"Grupo: \"&'Datos Generales'!K14","v":"Grupo: "}]
[]
["GRUPO","ALUMNOS A EVALUAR","CANTIDAD DE ALUMNOS EN CADA NIVEL DE LOGRO",null,null,null,"% DE ALUMNOS EN CADA NIVEL DE LOGRO"]
[null,null,"I","II","III","IV","I","II","III","IV"]
[{"$f":"'Datos Generales'!K14","v":0},{"$f":"SUM(C11:F11)","v":0},null,null,null,null,{"$f":"C11/$B$11*100","v":{"$error":"#DIV/0!"}},{"$f":"D11/$B$11*100","v":{"$error":"#DIV/0!"}},{"$f":"E11/$B$11*100","v":{"$error":"#DIV/0!"}},{"$f":"F11/$B$11*100","v":{"$error":"#DIV/0!"}}]

{"sheet":"Dat","index":6,"n_rows":55,"n_cols":51,"rows_kept":55,"cut":false,"hidden":true,"merged":[]}
["Pregunta",1,2,3,4,5,6,7,8,9,10,11,12,13,14,15,16,17,18,19,20,21,22,23,24,25,26,27,28,29,30,31,32,33,34,35,36,37,38,39,40,41,42,43,44,45,46,47,48,49,50]
["Matemáticas","D","C","D","C","B","B","C","A","D","C","C","A","B","D","C","A","D","B","C","B","C","D","A","A","B","B","D","B","C","B","A","A","C","D","B","A","B","C","D","B","A","A","C","C","D","A","D","D","B","D"]
["LyC","B","A","D","B","C","D","C","A","B","A","B","A","D","A","B","A","D","A","A","B","B","D","D","C","A","A","B","A","B","D","A","A","B","A","A","B","D","C","D","B","D","D","A","B","B","C","B","C"]
[]
["Opciones","Grupos","Alumnos",null,"NO","Grupo",null,"Medida",null,null,"NO","Grupo",null,"Desarrollo de una comprensión global"]
["A","A",1,null,1,null,null,"Ubicación espacial",null,null,1,null,null,"Análisis de contenido y estructura"]
["B","B",100,null,3,null,null,"Figuras y cuerpos",null,null,4,null,null,"Extracción de información"]
["C","C",null,null,4,null,null,"Análisis y representación de datos",null,null,6,null,null,"Desarrollo de una interpretación"]
["D","D",null,null,5,null,null,"Proporcionalidad y funciones",null,null,9,null,null,"Reflexión semántica"]
["M","E",null,null,6,null,null,"Problemas aditivos",null,null,27,null,null,"Convencionalidades lingüísticas"]
["V","F",null,null,26,null,null,"Problemas multiplicativos",null,null,36]
[null,"G",null,null,30,null,null,"Números y sistemas de numeración",null,null,47]
[null,"H",null,null,31,null,null,null,null,null,48]
[null,"I",null,null,32,null,null,null,null,null,2]
[null,"J",null,null,33,null,null,null,null,null,12]
[null,"K",null,null,34,null,null,null,null,null,13]
[null,"L",null,null,2,null,null,null,null,null,15]
[null,"M",null,null,28,null,null,null,null,null,17]
[null,"N",null,null,7,null,null,null,null,null,18]
[null,"O",null,null,8,null,null,null,null,null,20]
[null,"P",null,null,27,null,null,null,null,null,22]
[null,"Q",null,null,29,null,null,null,null,null,25]
[null,"R",null,null,9,null,null,null,null,null,30]
[null,"S",null,null,14,null,null,null,null,null,31]
[null,"T",null,null,35,null,null,null,null,null,32]
[null,"U",null,null,39,null,null,null,null,null,34]
[null,"V",null,null,10,null,null,null,null,null,39]
[null,"W",null,null,11,null,null,null,null,null,7]
[null,"X",null,null,12,null,null,null,null,null,21]
[null,"Y",null,null,13,null,null,null,null,null,29]
[null,"Z",null,null,36,null,null,null,null,null,37]
[null,null,null,null,37,null,null,null,null,null,46]
[null,null,null,null,38,null,null,null,null,null,8]
[null,null,null,null,15,null,null,null,null,null,11]
[null,null,null,null,18,null,null,null,null,null,14]
[null,null,null,null,23,null,null,null,null,null,16]
[null,null,null,null,24,null,null,null,null,null,19]
[null,null,null,null,47,null,null,null,null,null,35]
[null,null,null,null,16,null,null,null,null,null,40]
[null,null,null,null,17,null,null,null,null,null,41]
[null,null,null,null,19,null,null,null,null,null,45]
[null,null,null,null,42,null,null,null,null,null,3]
[null,null,null,null,43,null,null,null,null,null,24]
[null,null,null,null,45,null,null,null,null,null,33]
[null,null,null,null,46,null,null,null,null,null,42]
[null,null,null,null,48,null,null,null,null,null,43]
[null,null,null,null,20,null,null,null,null,null,44]
[null,null,null,null,21,null,null,null,null,null,5]
[null,null,null,null,22,null,null,null,null,null,10]
[null,null,null,null,25,null,null,null,null,null,23]
[null,null,null,null,40,null,null,null,null,null,26]
[null,null,null,null,41,null,null,null,null,null,28]
[null,null,null,null,44,null,null,null,null,null,38]
[null,null,null,null,49]
[null,null,null,null,50]